{"text_format":"1","workbook":"xlsx","n_sheets":6,"sheets":["AUTOEVALUACION","resumen de la autoeva IEO","ÁREA GESTIÓN ADMINISTRATIVA","ÁREA GESTIÓN ACADÉMICA","GESTIÓN ADMINIS Y FINANCIERA","GESTIÓN DE LA COMUNIDAD"],"not_rendered":{"charts":5,"images":1,"macros":0,"external_links":0,"defined_names":2,"comments":0,"pivot_tables":0},"unopened":[],"bounds":{"document_bytes":16777216,"sheet_cells":100000,"rows_first":2000,"rows_last":500,"rows_between":2000,"halvings":0,"cell_chars":16384,"cell_head_chars":4096},"cells_cut":0,"cells_raw":0,"read":"whole","date_system":"1900"}

{"sheet":"AUTOEVALUACION","index":0,"n_rows":148,"n_cols":7,"rows_kept":148,"cut":false,"hidden":false,"merged":[[9,2,9,5],[0,1,0,6],[1,1,1,6],[2,1,2,6],[3,2,3,5],[8,0,8,6],[0,0,3,0],[6,1,6,6],[5,1,5,6],[4,0,4,6],[10,1,11,1],[10,0,11,0],[10,6,11,6],[32,0,36,0],[37,0,46,0],[10,2,10,5],[12,0,16,0],[17,0,22,0],[23,0,31,0],[47,0,51,0],[52,0,53,1],[55,0,55,6],[57,0,58,0],[57,1,58,1],[57,2,57,5],[57,6,58,6],[59,0,64,0],[65,0,69,0],[70,0,74,0],[75,0,82,0],[83,0,84,1],[86,0,86,6],[79,1,80,1],[79,2,80,2],[79,3,80,3],[79,4,80,4],[79,5,80,5],[79,6,80,6],[88,0,89,0],[88,1,89,1],[88,2,88,5],[88,6,89,6],[94,0,101,0],[90,0,93,0],[102,0,104,0],[126,0,127,0],[105,0,115,0],[116,0,120,0],[121,0,122,1],[124,0,124,6],[126,1,127,1],[126,2,126,5],[142,0,145,0],[146,0,147,1],[126,6,127,6],[128,0,132,0],[133,0,137,0],[138,0,141,0]]}
[null,"SECRETARÍA DE EDUCACIÓN DISTRITAL CARTAGENA DE INDIAS"]
[null,"GEDCE01 GESTIÓN DE LA EVALUACION EDUCATIVA"]
[null,"RESULTADOS DE LA AUTOEVALUACIÓN INSTITUCIONAL"]
[null,"Código: GEDCE01-F005","Versión: 2",null,null,null,"Vigencia: 28/09/2021"]
[]
["INSTITUCIÓN EDUCATIVA:"]
["Fecha de la autoevaluación:"]
[]
["ÁREA: GESTIÓN DIRECTIVA"]
[null,null,"Marque con una X"]
["PROCESO","COMPONENTE","VALORACIÓN",null,null,null,"EVIDENCIAS"]
[null,null,1,2,3,4]
["Direccionamiento estratégico y horizonte institucional","Misión, visión y principios en \nel marco de una institución integrada"]
[null,"Metas institucionales"]
[null,"Conocimiento y apropiación del direccionamiento"]
[null,"Política de inclusión de personas  de diferentes grupos poblacionales o diversidad cultural"]
[null,"TOTAL",{"$f":"COUNTIF(C13:C16,\"X\")","v":0},{"$f":"COUNTIF(D13:D16,\"X\")","v":0},0,0]
["Gestión estratégica","Liderazgo"]
[null,"Articulación de planes, proyectos y acciones"]
[null,"Estrategia pedagógica"]
[null,"Uso de información (interna y externa) para la toma de decisiones"]
[null,"Seguimiento y autoevaluación"]
[null,"TOTAL",{"$f":"COUNTIF(C18:C22,\"X\")","v":0},{"$f":"COUNTIF(D18:D22,\"X\")","v":0},{"$f":"COUNTIF(E18:E22,\"X\")","v":0},{"$f":"COUNTIF(F18:F22,\"X\")","v":0}]
["Gobierno escolar","Consejo directivo"]
[null,"Consejo académico"]
[null,"Comisión de evaluación y \npromoción"]
[null,"Comité de convivencia"]
[null,"Consejo estudiantil"]
[null,"Personero estudiantil"]
[null,"Asamblea de padres de familia"]
[null,"Consejo de padres de familia"]
[null,"TOTAL",{"$f":"COUNTIF(C24:C31,\"X\")","v":0},{"$f":"COUNTIF(D24:D31,\"X\")","v":0},{"$f":"COUNTIF(E24:E31,\"X\")","v":0},{"$f":"COUNTIF(F24:F31,\"X\")","v":0}]
["Cultura Institucional","Mecanismos de comunicación"]
[null,"Trabajo en equipo"]
[null,"Reconocimiento de logros"]
[null,"Identificación y divulgación de \nbuenas prácticas"]
[null,"TOTAL",{"$f":"COUNTIF(C33:C36,\"X\")","v":0},{"$f":"COUNTIF(D33:D36,\"X\")","v":0},{"$f":"COUNTIF(E33:E36,\"X\")","v":0},{"$f":"COUNTIF(F33:F36,\"X\")","v":0}]
["Clima escolar","Pertenencia y participación"]
[null,"Ambiente físico"]
[null,"Inducción a los nuevos \nestudiantes"]
[null,"Motivación hacia el aprendizaje"]
[null,"Manual de convivencia"]
[null,"Actividades extracurriculares"]
[null,"Bienestar del alumnado"]
[null,"Manejo de conflictos"]
[null,"Manejo de casos difíciles"]
[null,"TOTAL",{"$f":"COUNTIF(C38:C46,\"X\")","v":0},{"$f":"COUNTIF(D38:D46,\"X\")","v":0},{"$f":"COUNTIF(E38:E46,\"X\")","v":0},{"$f":"COUNTIF(F38:F46,\"X\")","v":0}]
["Relaciones con el\n entorno","Padres de familia"]
[null,"Autoridades educativas"]
[null,"Otras instituciones"]
[null,"Sector productivo"]
[null,"TOTAL",{"$f":"COUNTIF(C48:C51,\"X\")","v":0},{"$f":"COUNTIF(D48:D51,\"X\")","v":0},{"$f":"COUNTIF(E48:E51,\"X\")","v":0},{"$f":"COUNTIF(F48:F51,\"X\")","v":0}]
["TOTAL PROCESO",null,{"$f":"+C17+C23+C32+C37+C47+C52","v":0},{"$f":"+D17+D23+D32+D37+D47+D52","v":0},{"$f":"+E17+E23+E32+E37+E47+E52","v":0},{"$f":"+F17+F23+F32+F37+F47+F52","v":0}]
[null,null,{"$f":"C53/34","v":0},{"$f":"D53/34","v":0},0,0,{"$f":"SUM(C54:F54)","v":0}]
[]
["ÁREA: GESTIÓN ACADÉMICA"]
[]
["PROCESO","COMPONENTE","VALORACIÓN",null,null,null,"EVIDENCIAS"]
[null,null,1,2,3,4]
["Diseño pedagógico \n(curricular)","Plan de estudios"]
[null,"Enfoque metodológico"]
[null,"Recursos para el aprendizaje"]
[null,"Jornada escolar"]
[null,"Evaluación"]
[null,"TOTAL",{"$f":"COUNTIF(C60:C64,\"X\")","v":0},{"$f":"COUNTIF(D60:D64,\"X\")","v":0},{"$f":"COUNTIF(E60:E64,\"X\")","v":0},{"$f":"COUNTIF(F60:F64,\"X\")","v":0}]
["Prácticas \npedagógicas","Opciones didácticas para las áreas, asignaturas y proyectos transversales"]
[null,"Estrategias para las tareas escolares"]
[null,"Uso articulado de los recursos para el aprendizaje"]
[null,"Uso de los tiempos para el aprendizaje"]
[null,"TOTAL",{"$f":"COUNTIF(C66:C69,\"X\")","v":0},{"$f":"COUNTIF(D66:D69,\"X\")","v":0},{"$f":"COUNTIF(E66:E69,\"X\")","v":0},{"$f":"COUNTIF(F66:F69,\"X\")","v":0}]
["Gestión de aula","Relación pedagógica"]
[null,"Planeación de clases"]
[null,"Estilo pedagógico"]
[null,"Evaluación en el aula"]
[null,"TOTAL",{"$f":"COUNTIF(C71:C74,\"X\")","v":0},{"$f":"COUNTIF(D71:D74,\"X\")","v":0},{"$f":"COUNTIF(E71:E74,\"X\")","v":0},{"$f":"COUNTIF(F71:F74,\"X\")","v":0}]
["Seguimiento \nacadémico","Seguimiento a los resultados académicos"]
[null,"Uso pedagógico de las evaluaciones externas"]
[null,"Seguimiento a la asistencia"]
[null,"Actividades de recuperación"]
[null,"Apoyo a estudiantes con bajo desempeño académico o dificultades académico o dificultades de interacción"]
[]
[null,"Seguimiento a los egresados"]
[null,"TOTAL",{"$f":"COUNTIF(C76:C82,\"X\")","v":0},{"$f":"COUNTIF(D76:D82,\"X\")","v":0},{"$f":"COUNTIF(E76:E82,\"X\")","v":0},{"$f":"COUNTIF(F76:F82,\"X\")","v":0}]
["TOTAL PROCESO",null,{"$f":"+C65+C70+C75+C83","v":0},{"$f":"+D65+D70+D75+D83","v":0},{"$f":"+E65+E70+E75+E83","v":0},{"$f":"+F65+F70+F75+F83","v":0}]
[null,null,{"$f":"C84/19","v":0},{"$f":"D84/19","v":0},0,0,{"$f":"SUM(C85:F85)","v":0}]
[]
["ÁREA: GESTIÓN ADMINISTRATIVA Y FINANCIERA"]
[]
["PROCESO","COMPONENTE","VALORACIÓN",null,null,null,"EVIDENCIAS"]
[null,null,1,2,3,4]
["Apoyo a la gestión \nacadémica","Proceso de matrícula"]
[null,"Archivo académico"]
[null,"Boletines de calificaciones"]
[null,"TOTAL",{"$f":"COUNTIF(C91:C93,\"X\")","v":0},{"$f":"COUNTIF(D91:D93,\"X\")","v":0},{"$f":"COUNTIF(E91:E93,\"X\")","v":0},{"$f":"COUNTIF(F91:F93,\"X\")","v":0}]
["Administración de la \nplanta física y los recursos","Mantenimiento de la planta física"]
[null,"Programas para la adecuación y embellecimiento de la planta física"]
[null,"Seguimiento al uso de los  espacios"]
[null,"Adquisición de los recursos para el aprendizaje"]
[null,"Suministros y dotación"]
[null,"Mantenimiento de equipos y recursos para el aprendizaje"]
[null,"Seguridad y protección"]
[null,"TOTAL",{"$f":"COUNTIF(C95:C101,\"X\")","v":0},{"$f":"COUNTIF(D95:D101,\"X\")","v":0},{"$f":"COUNTIF(E95:E101,\"X\")","v":0},{"$f":"COUNTIF(F95:F101,\"X\")","v":0}]
["Administración de servicios complementarios","Servicios de transporte, restaurante, cafetería y salud (enfermería, odontología y psicología)"]
[null,"Apoyo a estudiantes con necesidades educativas especiales"]
[null,"TOTAL",{"$f":"COUNTIF(C103:C104,\"X\")","v":0},{"$f":"COUNTIF(D103:D104,\"X\")","v":0},{"$f":"COUNTIF(E103:E104,\"X\")","v":0},{"$f":"COUNTIF(F103:F104,\"X\")","v":0}]
["Talento humano","Perfiles"]
[null,"Inducción"]
[null,"Formación y capacitación"]
[null,"Asignación académica"]
[null,"Pertenencia del personal vinculado"]
[null,"Evaluación del desempeño"]
[null,"Estímulos"]
[null,"Apoyo a la investigación"]
[null,"Convivencia y manejo de conflictos"]
[null,"Bienestar del talento humano"]
[null,"TOTAL",{"$f":"COUNTIF(C106:C115,\"X\")","v":0},{"$f":"COUNTIF(D106:D115,\"X\")","v":0},{"$f":"COUNTIF(E106:E115,\"X\")","v":0},{"$f":"COUNTIF(F106:F115,\"X\")","v":0}]
["Apoyo financiero y \ncontable","Presupuesto anual del Fondo de Servicios Educativos (FSE)"]
[null,"Contabilidad"]
[null,"Ingresos y gastos"]
[null,"Control fiscal"]
[null,"TOTAL",{"$f":"COUNTIF(C117:C120,\"X\")","v":0},{"$f":"COUNTIF(D117:D120,\"X\")","v":0},{"$f":"COUNTIF(E117:E120,\"X\")","v":0},{"$f":"COUNTIF(F117:F120,\"X\")","v":0}]
["TOTAL PROCESO",null,{"$f":"+C94+C102+C105+C116+C121","v":0},{"$f":"+D94+D102+D105+D116+D121","v":0},{"$f":"+E94+E102+E105+E116+E121","v":0},{"$f":"+F94+F102+F105+F116+F121","v":0}]
[null,null,{"$f":"C122/26","v":0},{"$f":"D122/26","v":0},0,0,{"$f":"SUM(C123:F123)","v":0}]
[]
["ÁREA: GESTIÓN DE LA COMUNIDAD"]
[]
["PROCESO","COMPONENTE","VALORACIÓN",null,null,null,"EVIDENCIAS"]
[null,null,1,2,"3",4]
["Accesibilidad","Atención educativa a grupos poblacionales o en situación  de vulnerabilidad que experimentan barreras al aprendizaje y la participación"]
[null,"Atención educativa a estudiantes pertenecientes a grupos étnicos"]
[null,"Necesidades y expectativas de  los estudiantes"]
[null,"Proyectos de vida"]
[null,"TOTAL",{"$f":"COUNTIF(C129:C132,\"X\")","v":0},{"$f":"COUNTIF(D129:D132,\"X\")","v":0},{"$f":"COUNTIF(E129:E132,\"X\")","v":0},{"$f":"COUNTIF(F129:F132,\"X\")","v":0}]
["Proyección a la \ncomunidad","Escuela familiar"]
[null,"Oferta de servicios a la comunidad"]
[null,"Uso de la planta física y de los medios"]
[null,"Servicio social estudiantil"]
[null,"TOTAL",{"$f":"COUNTIF(C134:C137,\"X\")","v":0},{"$f":"COUNTIF(D134:D137,\"X\")","v":0},{"$f":"COUNTIF(E134:E137,\"X\")","v":0},{"$f":"COUNTIF(F134:F137,\"X\")","v":0}]
["Participación y \nconvivencia","Participación de los estudiantes"]
[null,"Asamblea y consejo de padres de familia"]
[null,"Participación de las familias"]
[null,"TOTAL",{"$f":"COUNTIF(C139:C141,\"X\")","v":0},{"$f":"COUNTIF(D139:D141,\"X\")","v":0},{"$f":"COUNTIF(E139:E141,\"X\")","v":0},{"$f":"COUNTIF(F139:F141,\"X\")","v":0}]
["Prevención de riesgos","Prevención de riesgos físicos"]
[null,"Prevención de riesgos psicosociales"]
[null,"Programas de seguridad"]
[null,"TOTAL",{"$f":"COUNTIF(C143:C145,\"X\")","v":0},{"$f":"COUNTIF(D143:D145,\"X\")","v":0},{"$f":"COUNTIF(E143:E145,\"X\")","v":0},{"$f":"COUNTIF(F143:F145,\"X\")","v":0}]
["TOTAL PROCESO",null,{"$f":"+C133+C138+C142+C146","v":0},{"$f":"+D133+D138+D142+D146","v":0},{"$f":"+E133+E138+E142+E146","v":0},{"$f":"+F133+F138+F142+F146","v":0}]
[null,null,{"$f":"C147/14","v":0},{"$f":"D147/14","v":0},0,0,{"$f":"SUM(C148:F148)","v":0}]

{"sheet":"resumen de la autoeva IEO","index":1,"n_rows":13,"n_cols":11,"rows_kept":13,"cut":false,"hidden":false,"merged":[[14,1,14,4],[4,0,4,4],[5,1,5,4],[7,0,7,4],[6,1,6,4],[0,0,3,0],[0,1,0,14],[1,1,1,14],[2,1,2,14],[3,10,3,14],[3,4,3,9],[3,1,3,3]]}
[null,"SECRETARÍA DE EDUCACIÓN DISTRITAL CARTAGENA DE INDIAS"]
[null,"GEDCE01 GESTIÓN DE LA EVALUACION EDUCATIVA"]
[null,"RESULTADOS DE LA AUTOEVALUACIÓN INSTITUCIONAL"]
[null,"Código: GEDCE01-F005",null,null,"Versión: 2",null,null,null,null,null,"Vigencia: 28/09/2021"]
[]
["INSTITUCIÓN EDUCATIVA:"]
["UNALDE"]
["AUTOEVALUACIÓN"]
["AREÁ","EXISTENCIA","PERTINENCIA ","APROPIACION","M.CONTINUO "]
["GESTION \nDIRECTIVA",{"$f":"AUTOEVALUACION!C54","v":0},{"$f":"AUTOEVALUACION!D54","v":0},{"$f":"AUTOEVALUACION!E54","v":0},{"$f":"AUTOEVALUACION!F54","v":0}]
["\nGESTIÓN\n ACADÉMICA\n",{"$f":"AUTOEVALUACION!C85","v":0},{"$f":"AUTOEVALUACION!D85","v":0},{"$f":"AUTOEVALUACION!E85","v":0},{"$f":"AUTOEVALUACION!F85","v":0}]
["GESTION \nADMINISTRATIVA \nY FINANCIERA",{"$f":"AUTOEVALUACION!C123","v":0},{"$f":"AUTOEVALUACION!D123","v":0},{"$f":"AUTOEVALUACION!E123","v":0},{"$f":"AUTOEVALUACION!F123","v":0}]
["GESTION DE \nLA COMUNIDAD",{"$f":"AUTOEVALUACION!C148","v":0},{"$f":"AUTOEVALUACION!D148","v":0},{"$f":"AUTOEVALUACION!E148","v":0},{"$f":"AUTOEVALUACION!F148","v":0}]

{"sheet":"ÁREA GESTIÓN ADMINISTRATIVA","index":2,"n_rows":17,"n_cols":13,"rows_kept":17,"cut":false,"hidden":false,"merged":[[9,2,9,5],[7,1,7,5],[9,1,10,1],[3,12,3,16],[0,0,3,0],[0,1,0,16],[3,7,3,11],[3,1,3,6],[1,1,1,16],[2,1,2,16]]}
[null,"SECRETARÍA DE EDUCACIÓN DISTRITAL CARTAGENA DE INDIAS"]
[null,"GEDCE01 GESTIÓN DE LA EVALUACION EDUCATIVA"]
[null,"RESULTADOS DE LA AUTOEVALUACIÓN INSTITUCIONAL"]
[null,"Código: GEDCE01-F005",null,null,null,null,null,"Versión: 2",null,null,null,null,"Vigencia: 28/09/2021"]
[]
[]
[]
[null,"ÁREA: GESTIÓN DIRECTIVA"]
[]
[null,"PROCESO","VALORACIÓN"]
[null,null,"E","P","A","MC"]
[null,"Direccionamiento estratégico y horizonte institucional",{"$f":"AUTOEVALUACION!C17","v":0},{"$f":"AUTOEVALUACION!D17","v":0},{"$f":"AUTOEVALUACION!E17","v":0},{"$f":"AUTOEVALUACION!F17","v":0}]
[null,"Gestión estratégica",{"$f":"AUTOEVALUACION!C23","v":0},{"$f":"AUTOEVALUACION!D23","v":0},{"$f":"AUTOEVALUACION!E23","v":0},{"$f":"AUTOEVALUACION!F23","v":0},{"$f":"MAX(C13:F13)","v":0}]
[null,"Gobierno escolar",{"$f":"AUTOEVALUACION!C32","v":0},{"$f":"AUTOEVALUACION!D32","v":0},{"$f":"AUTOEVALUACION!E32","v":0},{"$f":"AUTOEVALUACION!F32","v":0},{"$f":"MAX(C14:F14)","v":0}]
[null,"Cultura Institucional",{"$f":"AUTOEVALUACION!C37","v":0},{"$f":"AUTOEVALUACION!D37","v":0},{"$f":"AUTOEVALUACION!E37","v":0},{"$f":"AUTOEVALUACION!F37","v":0},{"$f":"MAX(C15:F15)","v":0}]
[null,"Clima escolar",{"$f":"AUTOEVALUACION!C47","v":0},{"$f":"AUTOEVALUACION!D47","v":0},{"$f":"AUTOEVALUACION!E47","v":0},{"$f":"AUTOEVALUACION!F47","v":0},{"$f":"MAX(C16:F16)","v":0}]
[null,"Relaciones con el\n entorno",{"$f":"AUTOEVALUACION!C52","v":0},{"$f":"AUTOEVALUACION!D52","v":0},{"$f":"AUTOEVALUACION!E52","v":0},{"$f":"AUTOEVALUACION!F52","v":0},{"$f":"MAX(C17:F17)","v":0}]

{"sheet":"ÁREA GESTIÓN ACADÉMICA","index":3,"n_rows":15,"n_cols":13,"rows_kept":15,"cut":false,"hidden":false,"merged":[[0,0,3,0],[7,1,7,5],[9,1,10,1],[9,2,9,5],[0,1,0,16],[1,1,1,16],[2,1,2,16],[3,1,3,6],[3,7,3,11],[3,12,3,16]]}
[null,"SECRETARÍA DE EDUCACIÓN DISTRITAL CARTAGENA DE INDIAS"]
[null,"GEDCE01 GESTIÓN DE LA EVALUACION EDUCATIVA"]
[null,"RESULTADOS DE LA AUTOEVALUACIÓN INSTITUCIONAL"]
[null,"Código: GEDCE01-F005",null,null,null,null,null,"Versión: 2",null,null,null,null,"Vigencia: 28/09/2021"]
[]
[]
[]
[null,"ÁREA: GESTIÓN ACADÉMICA"]
[]
[null,"PROCESO","VALORACIÓN"]
[null,null,"E","P","A","MC"]
[null,"Diseño pedagógico \n(curricular)",{"$f":"AUTOEVALUACION!C65","v":0},{"$f":"AUTOEVALUACION!D65","v":0},{"$f":"AUTOEVALUACION!E65","v":0},{"$f":"AUTOEVALUACION!F65","v":0}]
[null,"Prácticas \npedagógicas",{"$f":"AUTOEVALUACION!C70","v":0},{"$f":"AUTOEVALUACION!D70","v":0},{"$f":"AUTOEVALUACION!E70","v":0},{"$f":"AUTOEVALUACION!F70","v":0},{"$f":"MAX(C13:F13)","v":0}]
[null,"Gestión de aula",{"$f":"AUTOEVALUACION!C75","v":0},{"$f":"AUTOEVALUACION!D75","v":0},{"$f":"AUTOEVALUACION!E75","v":0},{"$f":"AUTOEVALUACION!F75","v":0},{"$f":"MAX(C14:F14)","v":0}]
[null,"Seguimiento \nacadémico",{"$f":"AUTOEVALUACION!C83","v":0},{"$f":"AUTOEVALUACION!D83","v":0},{"$f":"AUTOEVALUACION!E83","v":0},{"$f":"AUTOEVALUACION!F83","v":0},{"$f":"MAX(C15:F15)","v":0}]

{"sheet":"GESTIÓN ADMINIS Y FINANCIERA","index":4,"n_rows":16,"n_cols":13,"rows_kept":16,"cut":false,"hidden":false,"merged":[[0,0,3,0],[7,1,7,5],[9,1,10,1],[9,2,9,5],[0,1,0,16],[1,1,1,16],[2,1,2,16],[3,1,3,6],[3,7,3,11],[3,12,3,16]]}
[null,"SECRETARÍA DE EDUCACIÓN DISTRITAL CARTAGENA DE INDIAS"]
[null,"GEDCE01 GESTIÓN DE LA EVALUACION EDUCATIVA"]
[null,"RESULTADOS DE LA AUTOEVALUACIÓN INSTITUCIONAL"]
[null,"Código: GEDCE01-F005",null,null,null,null,null,"Versión: 2",null,null,null,null,"Vigencia: 28/09/2021"]
[]
[]
[]
[null,"ÁREA: GESTION ADMINISTRATIVA  Y FINANCIERA"]
[]
[null,"PROCESO","VALORACIÓN"]
[null,null,"E","P","A","MC"]
[null,"Apoyo a la gestión \nacadémica",{"$f":"AUTOEVALUACION!C94","v":0},{"$f":"AUTOEVALUACION!D94","v":0},{"$f":"AUTOEVALUACION!E94","v":0},{"$f":"AUTOEVALUACION!F94","v":0}]
[null,"Administración de la \nplanta física y los recursos",{"$f":"AUTOEVALUACION!C102","v":0},{"$f":"AUTOEVALUACION!D102","v":0},{"$f":"AUTOEVALUACION!E102","v":0},{"$f":"AUTOEVALUACION!F102","v":0}]
[null,"Administración de servicios complementarios",{"$f":"AUTOEVALUACION!C105","v":0},{"$f":"AUTOEVALUACION!D105","v":0},{"$f":"AUTOEVALUACION!E105","v":0},{"$f":"AUTOEVALUACION!F105","v":0}]
[null,"Talento humano",{"$f":"AUTOEVALUACION!C116","v":0},{"$f":"AUTOEVALUACION!D116","v":0},{"$f":"AUTOEVALUACION!E116","v":0},{"$f":"AUTOEVALUACION!F116","v":0}]
[null,"Apoyo financiero y contable",{"$f":"AUTOEVALUACION!C121","v":0},{"$f":"AUTOEVALUACION!D121","v":0},{"$f":"AUTOEVALUACION!E121","v":0},{"$f":"AUTOEVALUACION!F121","v":0}]

{"sheet":"GESTIÓN DE LA COMUNIDAD","index":5,"n_rows":17,"n_cols":13,"rows_kept":17,"cut":false,"hidden":false,"merged":[[0,0,3,0],[9,1,9,5],[11,1,12,1],[11,2,11,5],[0,1,0,16],[1,1,1,16],[2,1,2,16],[3,1,3,6],[3,7,3,11],[3,12,3,16]]}
[null,"SECRETARÍA DE EDUCACIÓN DISTRITAL CARTAGENA DE INDIAS"]
[null,"GEDCE01 GESTIÓN DE LA EVALUACION EDUCATIVA"]
[null,"RESULTADOS DE LA AUTOEVALUACIÓN INSTITUCIONAL"]
[null,"Código: GEDCE01-F005",null,null,null,null,null,"Versión: 2",null,null,null,null,"Vigencia: 28/09/2021"]
[]
[]
[]
[]
[]
[null,"ÁREA: GESTION DE LA COMUNIDAD"]
[]
[null,"PROCESO","VALORACIÓN"]
[null,null,"E","P","A","MC"]
[null,"Accesibilidad",{"$f":"AUTOEVALUACION!C133","v":0},{"$f":"AUTOEVALUACION!D133","v":0},{"$f":"AUTOEVALUACION!E133","v":0},{"$f":"AUTOEVALUACION!F133","v":0}]
[null,"Proyección a la \ncomunidad",{"$f":"AUTOEVALUACION!C138","v":0},{"$f":"AUTOEVALUACION!D138","v":0},{"$f":"AUTOEVALUACION!E138","v":0},{"$f":"AUTOEVALUACION!F138","v":0}]
[null,"Participación y \nconvivencia",{"$f":"AUTOEVALUACION!C142","v":0},{"$f":"AUTOEVALUACION!D142","v":0},{"$f":"AUTOEVALUACION!E142","v":0},{"$f":"AUTOEVALUACION!F142","v":0}]
[null,"Prevención de riesgos",{"$f":"AUTOEVALUACION!C146","v":0},{"$f":"AUTOEVALUACION!D146","v":0},{"$f":"AUTOEVALUACION!E146","v":0},{"$f":"AUTOEVALUACION!F146","v":0}]